bitfinex/quotes_SOLUSD_20240816
["timestamp","ask_amount","ask_price","bid_price","bid_amount"]
[1723802113653,0.25098,144.47,144.45,6.9224]
[1723802113806,0.12549,144.47,144.43,24.2322]
[1723802114003,0.12549,144.47,144.43,17.3088]
[1723802114306,0.12549,144.47,144.44,6.9229]
[1723802116005,0.12549,144.47,144.45,6.9226]
[1723802116225,0.12549,144.47,144.44,6.9231]
[1723802117520,0.12549,144.47,144.43,17.3088]
[1723802117716,0.25098,144.47,144.43,17.3088]
[1723802117908,0.12549,144.46,144.43,17.3088]
[1723802119109,0.12549,144.46,144.44,6.9232]
[1723802120454,0.12549,144.46,144.43,24.2324]
[1723802121452,0.12549,144.46,144.44,6.9232]
[1723802125258,0.12549,144.46,144.43,24.2324]
[1723802125434,0.12549,144.46,144.43,17.3088]
[1723802125665,0.12549,144.45,144.43,17.3088]
[1723802126650,0.12549,144.45,144.43,24.2322]
[1723802127059,0.25098,144.46,144.44,6.9232]
[1723802127234,0.12549,144.46,144.44,6.9232]
[1723802127563,0.12549,144.47,144.44,6.9232]
[1723802127564,0.37647,144.47,144.44,6.9232]
[1723802128868,0.25098,144.47,144.44,6.9232]
[1723802129067,7.17298,144.47,144.43,24.2322]
[1723802129270,0.25098,144.47,144.44,6.923]
[1723802129437,0.25098,144.47,144.44,8.30745602]
[1723802129834,0.12549,144.48,144.45,6.9226]
[1723802130254,0.25098,144.48,144.45,6.9226]
[1723802131169,0.12549,144.47,144.45,6.9226]
[1723802133173,0.12549,144.46,144.44,6.9231]
[1723802133376,0.25098,144.46,144.44,6.9231]
[1723802133556,0.12549,144.45,144.44,6.9231]
[1723802133751,0.12549,144.45,144.43,17.3088]
[1723802133953,0.12549,144.44,144.41,6.9243]
[1723802134851,0.12549,144.44,144.42,6.9241]
[1723802137773,0.25098,144.44,144.42,6.9241]
[1723802137970,0.12549,144.43,144.42,6.9241]
[1723802138165,0.12549,144.46,144.42,6.9241]
[1723802138357,0.37647,144.46,144.42,6.9241]
[1723802138590,0.12549,144.46,144.42,6.9241]
[1723802138768,0.12549,144.46,144.43,6.9237]
[1723802139788,0.25098,144.46,144.43,6.9237]
[1723802141489,0.25098,144.45,144.43,6.9237]
[1723802141674,0.12549,144.44,144.39,50.3657334]
[1723802141869,0.12549,144.44,144.42,6.9242]
[1723802142971,0.12549,144.44,144.43,6.9237]
[1723802143280,0.12549,144.46,144.43,6.9237]
[1723802143471,0.37647,144.46,144.43,6.9237]
[1723802147093,0.37647,144.46,144.43,24.2324]
[1723802147468,17.2513,144.48,144.44,6.9231]
[1723802147658,6.9213,144.48,144.44,6.9231]
[1723802149199,0.12549,144.47,144.43,24.2325]
[1723802149366,7.42376,144.47,144.43,24.2325]
[1723802153227,0.12549,144.47,144.45,6.9227]
[1723802153395,0.37647,144.48,144.45,6.9227]
[1723802153729,0.12549,144.48,144.45,6.9227]
[1723802154785,32.715,144.5,144.45,6.9227]
[1723802154786,0.37647,144.49,144.45,6.9227]
[1723802155209,6.9193,144.53,144.48,6.9212]
[1723802155711,17.2507,144.5,144.46,6.9222]
[1723802156612,0.12549,144.48,144.46,6.9222]
[1723802157019,15.9264425,144.54,144.45,10.33]
[1723802157205,15.9264425,144.54,144.48,17.303]
[1723802157524,15.9264425,144.54,144.49,1.38401813]
[1723802157764,15.9264425,144.54,144.48,17.303]
[1723802158433,6.919,144.53,144.48,17.303]
[1723802158725,15.9264425,144.54,144.48,24.2243]
[1723802158915,26.2564425,144.54,144.48,24.2243]
[1723802159510,26.2564425,144.54,144.44,32.7175057]
[1723802159511,6.9199,144.51,144.44,39.7273]
[1723802159711,10.33,144.5,144.44,39.7273]
[1723802159908,0.12549,144.49,144.44,39.7273]
[1723802160110,0.25098,144.49,144.44,39.7273]
[1723802160327,0.25098,144.49,144.47,17.3045]
[1723802160506,0.25098,144.49,144.44,22.4202]
[1723802161309,10.33,144.48,144.43,24.232]
[1723802161521,0.25098,144.47,144.43,24.232]
[1723802161846,0.12549,144.47,144.44,6.923]
[1723802162000,0.12549,144.48,144.44,6.923]
[1723802162207,10.33,144.48,144.44,6.923]
[1723802162424,0.25098,144.47,144.43,17.3083]
[1723802163236,0.12549,144.45,144.43,17.3083]
[1723802163443,0.25098,144.45,144.43,17.3083]
[1723802164801,0.12549,144.45,144.43,25.61626463]
[1723802165023,0.12549,144.48,144.43,24.2317]
[1723802165253,0.12549,144.48,144.45,6.9227]
[1723802165541,0.12549,144.48,144.4,21.8707]
[1723802165542,16.2434,144.53,144.41,20.0]
[1723802165729,16.2434,144.53,144.41,30.30733051]
[1723802165934,10.33,144.51,144.45,17.3059]
[1723802167236,10.33,144.49,144.42,17.3102]
[1723802167423,33.5416,144.53,144.42,24.234]
[1723802167424,0.12549,144.46,144.42,24.234]
[1723802167742,0.25098,144.46,144.42,24.234]
[1723802168454,0.12549,144.45,144.42,24.234]
[1723802168625,0.25098,144.45,144.42,17.3102]
[1723802168827,0.12549,144.44,144.4,6.925]
[1723802169027,0.12549,144.44,144.41,6.9247]
[1723802169234,0.25098,144.45,144.42,6.9241]
[1723802169235,0.12549,144.45,144.42,6.9241]
[1723802169948,10.45549,144.46,144.42,6.9241]
[1723802170453,0.12549,144.45,144.41,24.2354]
[1723802170649,0.37647,144.45,144.41,24.2354]
[1723802170855,0.37647,144.45,144.42,6.9242]
[1723802170856,0.25098,144.45,144.42,6.9242]
[1723802172021,0.12549,144.45,144.42,6.9242]
[1723802172232,22.8529,144.48,144.44,6.9231]
[1723802172233,16.2434,144.48,144.44,6.9231]
[1723802172531,0.12549,144.47,144.43,24.2322]
[1723802173351,0.25098,144.47,144.43,24.2322]
[1723802173862,6.9209,144.49,144.44,6.9232]
[1723802174632,6.9209,144.49,144.45,6.9227]
[1723802175249,6.9204,144.5,144.45,6.9227]
[1723802175856,6.9204,144.5,144.46,6.9222]
[1723802177759,7.04649,144.49,144.44,6.9229]
[1723802178660,6.9218,144.47,144.43,17.3086]
[1723802178959,6.9218,144.47,144.43,6.9237]
[1723802178960,7.04739,144.47,144.43,6.9237]
[1723802179164,0.12549,144.47,144.43,6.9237]
[1723802179755,10.45549,144.47,144.42,24.2342]
[1723802179960,17.37739,144.47,144.42,24.2342]
[1723802180152,10.45549,144.47,144.44,6.9232]
[1723802180576,10.45549,144.47,144.43,6.9236]
[1723802180771,10.45549,144.47,144.39,17.3142]
[1723802181072,7.04929,144.43,144.37,16.6264]
[1723802181258,7.04929,144.43,144.36,17.3176]
[1723802181259,0.12549,144.42,144.36,17.3176]
[1723802181459,10.45549,144.42,144.38,6.9261]
[1723802182354,0.12549,144.42,144.39,6.9255]
[1723802182660,0.25098,144.43,144.39,6.9255]
[1723802183865,10.58098,144.43,144.39,6.9255]
[1723802184072,17.50498,144.43,144.38,24.2406]
[1723802184781,6.9229,144.45,144.38,17.3146]
[1723802184980,6.9193,144.53,144.42,20.0]
[1723802185188,6.9194,144.52,144.46,6.9219]
[1723802185771,6.9194,144.52,144.47,6.9214]
[1723802186177,0.8541425,144.54,144.48,6.9213]
[1723802186178,6.919,144.53,144.48,6.9213]
[1723802187656,0.25098,144.52,144.48,6.9213]
[1723802187880,0.37647,144.52,144.48,6.9213]
[1723802188787,7.29597,144.52,144.48,6.9213]
[1723802189768,0.37647,144.52,144.48,6.9213]
[1723802190195,0.37647,144.52,144.49,6.9207]
[1723802191189,0.25098,144.52,144.49,6.9207]
[1723802191570,0.25098,144.52,144.48,6.9212]
[1723802194204,0.25098,144.52,144.47,17.3039]
[1723802194402,0.25098,144.53,144.49,6.9207]
[1723802194707,0.8541425,144.54,144.51,6.9198]
[1723802195075,0.8541425,144.54,144.5,6.9202]
[1723802196319,0.8541425,144.54,144.49,17.3014]
[1723802196320,0.8541425,144.54,144.51,6.9198]
[1723802196810,0.8541425,144.54,144.51,17.2993]
[1723802197898,7.7726425,144.54,144.51,17.2993]
[1723802198079,7.7726425,144.54,144.5,6.9202]
[1723802199096,7.7726425,144.54,144.48,39.2006]
[1723802199097,0.12549,144.53,144.49,6.9208]
[1723802199304,7.16988,144.53,144.49,6.9208]
[1723802199613,7.16988,144.53,144.48,24.2237]
[1723802199913,6.9194,144.52,144.48,17.3025]
[1723802200094,6.9195,144.52,144.47,6.9215]
[1723802200292,0.25098,144.51,144.48,6.9212]
[1723802202200,6.9195,144.52,144.48,6.9212]
[1723802203505,33.07557,144.53,144.48,6.9212]
[1723802203791,0.25098,144.52,144.48,6.9212]
[1723802204622,0.12549,144.52,144.49,6.9206]
[1723802205617,0.12549,144.52,144.5,6.9202]
[1723802205922,0.25098,144.53,144.49,24.2224]
[1723802206880,0.12549,144.53,144.5,6.9203]
[1723802207084,7.7726425,144.54,144.5,6.9203]
[1723802208095,7.04449,144.53,144.49,24.2224]
[1723802208420,7.16998,144.53,144.49,24.2224]
[1723802209389,7.16998,144.53,144.49,17.3017]
[1723802209910,17.47998,144.53,144.49,17.3017]
[1723802210741,6.9195,144.52,144.49,17.3017]
[1723802210909,0.12549,144.51,144.49,17.3017]
[1723802211629,0.12549,144.51,144.47,6.9218]
[1723802211844,0.12549,144.5,144.46,24.2271]
[1723802213008,7.04589,144.5,144.46,24.2271]
[1723802213239,0.12549,144.49,144.46,24.2271]
[1723802214941,17.35639,144.49,144.45,6.9226]
[1723802215247,0.25098,144.48,144.44,6.9231]
[1723802215542,0.12549,144.47,144.44,6.9231]
[1723802215727,0.12549,144.47,144.43,24.2321]
[1723802217026,17.35729,144.47,144.43,17.3085]
[1723802217409,0.12549,144.46,144.43,17.3085]
[1723802217840,0.12549,144.46,144.43,24.2321]
[1723802218445,0.12549,144.46,144.41,6.1051]
[1723802218446,7.04799,144.46,144.42,6.9241]
[1723802218745,0.12549,144.45,144.43,6.9236]
[1723802219348,0.25098,144.46,144.43,6.9236]
[1723802219511,0.25098,144.46,144.42,24.2343]
[1723802219717,7.17328,144.46,144.42,17.3103]
[1723802220061,7.17328,144.46,144.42,24.2345]
[1723802220576,0.12549,144.46,144.42,17.3103]
[1723802220736,0.12549,144.46,144.43,6.9235]
[1723802221061,0.25098,144.47,144.43,6.9235]
[1723802221265,7.17288,144.47,144.43,6.9235]
[1723802221626,17.48288,144.47,144.43,6.9235]
[1723802223632,0.12549,144.45,144.42,24.2344]
[1723802223840,0.25098,144.45,144.42,24.2344]
[1723802225059,0.12549,144.45,144.43,6.9236]
[1723802225753,10.31,144.47,144.43,6.9236]
[1723802225754,0.12549,144.46,144.43,6.9236]
[1723802226364,0.12549,144.45,144.43,6.9236]
[1723802226883,0.12549,144.46,144.44,1.38456445]
[1723802227058,0.12549,144.46,144.43,6.9236]
[1723802227253,6.9215,144.48,144.42,17.3103]
[1723802227254,6.921,144.49,144.44,6.9231]
[1723802227464,6.9209,144.49,144.45,6.9224]
[1723802228091,6.9209,144.49,144.44,24.2308]
[1723802228755,0.12549,144.48,144.44,24.2308]
[1723802228966,10.31,144.48,144.41,17.3114]
[1723802229194,0.25098,144.47,144.43,6.9237]
[1723802229395,0.25098,144.47,144.44,6.9231]
[1723802229872,0.12549,144.47,144.44,6.9231]
[1723802230051,10.68647,144.48,144.44,6.9231]
[1723802231566,17.2305,144.5,144.45,24.229]
[1723802231767,6.9211,144.49,144.45,17.3066]
[1723802232277,6.9211,144.49,144.45,24.2293]
[1723802232678,10.31,144.5,144.46,6.9219]
[1723802232858,0.25098,144.49,144.46,6.9219]
[1723802233683,0.25098,144.49,144.47,1.38416171]
[1723802234189,11.51482003,144.53,144.45,37.3066]
[1723802234356,6.9197,144.52,144.48,6.9213]
[1723802235089,6.9197,144.52,144.47,6.9216]
[1723802235290,6.9197,144.52,144.46,6.9219]
[1723802235291,0.12549,144.5,144.46,6.9219]
[1723802235695,0.25098,144.5,144.46,6.9219]
[1723802235987,0.25098,144.5,144.45,24.2292]
[1723802235988,7.17168,144.5,144.45,24.2292]
[1723802236184,10.31,144.49,144.45,24.2292]
[1723802236372,0.25098,144.48,144.45,17.3066]
[1723802236691,7.17228,144.48,144.45,17.3066]
[1723802236871,0.25098,144.48,144.45,24.2294]
[1723802238065,0.25098,144.48,144.46,1.38434136]
[1723802238262,0.25098,144.48,144.46,1.38432718]
[1723802238476,0.25098,144.48,144.45,24.2294]
[1723802239056,0.12549,144.48,144.45,24.2294]
[1723802239296,6.9205,144.5,144.46,6.9222]
[1723802239480,0.12549,144.49,144.46,6.9222]
[1723802240497,0.25098,144.49,144.46,6.9222]
[1723802241488,0.25098,144.49,144.45,24.229]
[1723802241675,7.17188,144.49,144.45,17.3066]
[1723802242194,7.17188,144.49,144.45,24.2292]
[1723802242526,0.25098,144.49,144.45,24.2292]
[1723802242710,0.25098,144.49,144.46,1.38411799]
[1723802242711,0.12549,144.49,144.46,1.38411799]
[1723802242866,0.25098,144.5,144.46,6.9222]
[1723802243783,0.25098,144.5,144.47,6.9217]
[1723802243978,0.25098,144.5,144.46,6.9221]
[1723802244181,7.17158,144.5,144.46,6.9221]
[1723802245400,7.17158,144.5,144.45,24.229]
[1723802245765,0.12549,144.48,144.45,17.3066]
[1723802245968,0.25098,144.48,144.43,6.9236]
[1723802246181,10.31,144.47,144.43,6.9236]
[1723802246493,0.25098,144.48,144.42,17.3098]
[1723802246697,0.25098,144.48,144.44,6.9231]
[1723802246875,0.25098,144.48,144.43,6.9236]
[1723802246876,7.17268,144.48,144.43,6.9236]
[1723802250828,7.17268,144.48,144.44,6.9232]
[1723802250973,7.17268,144.48,144.39,17.3134]
[1723802250974,17.2329,144.45,144.39,17.3134]
[1723802251174,7.17438,144.44,144.4,6.925]
[1723802251503,7.04979,144.42,144.38,6.9257]
[1723802251805,7.04979,144.42,144.36,38.905]
[1723802251806,0.12549,144.42,144.39,17.3141]
[1723802252305,0.12549,144.43,144.39,24.2396]
[1723802252679,0.12549,144.44,144.41,17.3113]
[1723802252883,6.9236,144.44,144.4,6.925]
[1723802253075,0.25098,144.43,144.4,6.925]
[1723802253578,0.25098,144.43,144.39,6.9255]
[1723802254677,0.12549,144.43,144.41,6.9246]
[1723802254890,0.25098,144.44,144.41,6.9246]
[1723802255415,0.25098,144.44,144.4,24.2375]
[1723802256921,7.17428,144.44,144.4,24.2375]
[1723802257228,10.31,144.43,144.4,24.2375]
[1723802262831,10.31,144.43,144.4,17.3125]
[1723802263231,0.12549,144.42,144.4,17.3125]
[1723802263412,0.25098,144.42,144.4,17.3125]
[1723802263931,17.2339,144.43,144.4,18.69728202]
[1723802264433,17.2339,144.43,144.4,17.3125]
[1723802266918,10.31,144.43,144.4,24.2375]
[1723802267320,10.31,144.43,144.4,17.3125]
[1723802269032,10.31,144.43,144.4,24.2376]
[1723802269934,0.12549,144.42,144.38,6.9259]
[1723802270235,0.37647,144.42,144.38,6.9259]
[1723802270661,0.37647,144.42,144.39,6.9256]
[1723802274358,0.25098,144.42,144.39,6.9256]
[1723802274531,0.12549,144.42,144.39,6.9255]
[1723802274947,0.25098,144.42,144.39,6.9255]
[1723802279774,17.44413759,144.47,144.37,30.31]
[1723802279936,17.44413759,144.47,144.37,31.69484111]
[1723802279937,27.75413759,144.47,144.37,31.69484111]
[1723802280149,26.5488,144.47,144.37,30.31]
[1723802280336,7.77799103,144.5,144.4,34.6259]
[1723802280539,6.9212,144.49,144.44,6.9231]
[1723802281547,6.9213,144.48,144.44,6.9231]
[1723802281737,10.31,144.47,144.44,6.9231]
[1723802282650,0.12549,144.46,144.43,17.3088]
[1723802282832,10.31,144.45,144.43,17.3088]
[1723802283836,0.12549,144.44,144.42,6.9238]
[1723802284363,0.25098,144.44,144.41,6.9245]
[1723802286085,10.31,144.45,144.42,6.9241]
[1723802286260,6.9219,144.47,144.43,6.9235]
[1723802286455,17.2319,144.47,144.43,6.9235]
[1723802288076,0.12549,144.46,144.43,6.9235]
[1723802291293,0.25098,144.46,144.43,6.9235]
[1723802292990,0.12549,144.44,144.42,24.2342]
[1723802293191,0.25098,144.44,144.42,24.2342]
[1723802293505,0.12549,144.44,144.42,24.2342]
[1723802293794,10.31,144.45,144.42,24.2342]
[1723802294696,0.25098,144.46,144.43,6.9237]
[1723802294894,17.232,144.47,144.44,6.9229]
[1723802294895,10.31,144.47,144.44,6.9229]
[1723802295097,10.31,144.48,144.44,17.3077]
[1723802296100,17.2313,144.48,144.44,24.2306]
[1723802296297,0.12549,144.47,144.44,24.2306]
[1723802296614,0.25098,144.47,144.44,17.3077]
[1723802296821,10.31,144.46,144.44,17.3077]
[1723802299739,10.31,144.46,144.43,6.9235]
[1723802300539,0.12549,144.45,144.43,6.9235]
[1723802301760,0.12549,144.47,144.44,1.38452359]
[1723802302043,0.37647,144.47,144.44,1.38452359]
[1723802302215,0.37647,144.47,144.43,6.9235]
[1723802305531,10.31,144.46,144.43,6.9235]
[1723802309965,17.2327,144.46,144.42,6.9241]
[1723802310177,0.37647,144.47,144.39,6.9253]
[1723802310178,17.2337,144.44,144.39,6.9253]
[1723802310379,10.31,144.42,144.4,6.9251]
[1723802310962,0.12549,144.41,144.38,17.3145]
[1723802311166,1.73098063,144.43,144.36,56.223]
[1723802311167,11.22287632,144.51,144.42,26.4515]
[1723802311389,10.31,144.52,144.45,17.3067]
[1723802311561,6.9202,144.51,144.46,6.9223]
[1723802311898,6.9202,144.51,144.47,6.9218]
[1723802312144,17.2295,144.52,144.47,6.9218]
[1723802312384,16.1281,144.53,144.49,6.9208]
[1723802312385,23.0471,144.53,144.49,6.9208]
[1723802312585,16.1281,144.53,144.5,8.30419081]
[1723802312895,16.1281,144.53,144.49,6.9207]
[1723802313067,16.1281,144.53,144.5,1.38388664]
[1723802313264,16.1281,144.53,144.49,17.3016]
[1723802313776,16.1281,144.53,144.49,24.2224]
[1723802313985,11.003425,144.52,144.46,17.3052]
[1723802314167,6.92,144.51,144.46,24.2271]
[1723802314690,0.25098,144.5,144.46,24.2271]
[1723802315073,0.12549,144.5,144.45,6.9226]
[1723802315275,6.9209,144.49,144.45,6.9226]
[1723802315576,17.35599,144.5,144.45,6.9226]
[1723802315780,0.25098,144.49,144.45,6.9226]
[1723802319896,0.8541425,144.54,144.45,17.3062]
[1723802320064,6.92,144.51,144.47,6.9216]
[1723802320500,6.9204,144.5,144.46,6.9221]
[1723802320876,6.92,144.51,144.46,6.9221]
[1723802321091,6.92,144.51,144.47,6.9218]
[1723802321276,0.25098,144.5,144.47,6.9218]
[1723802323315,0.25098,144.5,144.46,6.9222]
[1723802323608,0.25098,144.5,144.45,24.2288]
[1723802323609,6.9208,144.49,144.45,24.2288]
[1723802323814,7.29817,144.48,144.43,6.9234]
[1723802324009,7.29817,144.48,144.42,23.7612]
[1723802324010,7.29817,144.48,144.44,6.9231]
[1723802325480,0.25098,144.48,144.45,6.9227]
[1723802326179,0.25098,144.48,144.45,8.30701698]
[1723802326588,0.25098,144.48,144.45,6.9227]
[1723802326823,0.25098,144.48,144.44,24.2308]
[1723802329590,7.17228,144.48,144.44,24.2308]
[1723802329800,7.17228,144.48,144.43,6.9237]
[1723802329801,10.56098,144.48,144.43,6.9237]
[1723802330311,0.12549,144.47,144.43,6.9237]
[1723802330720,10.43549,144.46,144.42,17.3103]
[1723802331021,10.43549,144.46,144.39,24.2388]
[1723802331022,10.43549,144.44,144.39,24.2388]
[1723802331195,0.12549,144.43,144.4,6.9251]
[1723802331618,0.12549,144.43,144.39,24.2389]
[1723802331815,0.12549,144.43,144.39,17.3133]
[1723802332834,6.9225,144.46,144.41,6.9243]
[1723802334113,0.25098,144.45,144.41,6.9243]
[1723802334922,7.04829,144.45,144.41,6.9243]
[1723802339230,0.12549,144.45,144.41,6.9243]
[1723802342924,0.12549,144.45,144.41,6.9246]
[1723802342925,0.12549,144.44,144.41,6.9246]
[1723802343597,7.17378,144.45,144.41,6.9246]
[1723802343802,0.12549,144.45,144.41,6.9246]
[1723802345313,0.25098,144.45,144.41,6.9246]
[1723802346127,7.17388,144.45,144.41,6.9246]
[1723802346430,7.04869,144.44,144.4,6.9248]
[1723802346947,0.12549,144.43,144.4,6.9248]
[1723802347740,10.31,144.47,144.41,17.3114]
[1723802347941,6.9226,144.46,144.42,6.9241]
[1723802348246,6.9226,144.46,144.41,17.3114]
[1723802348247,6.9226,144.46,144.41,24.2359]
[1723802349374,0.37647,144.45,144.41,24.2359]
[1723802351328,0.37647,144.45,144.42,6.9241]
[1723802352025,0.37647,144.45,144.41,24.2359]
[1723802352225,7.29927,144.45,144.41,24.2359]
[1723802358539,18.50936641,144.48,144.41,24.2359]
[1723802358736,1.20556641,144.48,144.43,17.3085]
[1723802358938,16.0631,144.49,144.45,6.9227]
[1723802359136,22.984,144.49,144.45,6.9227]
[1723802359958,0.12549,144.48,144.45,6.9227]
[1723802360156,0.25098,144.48,144.45,6.9227]
[1723802363795,0.12549,144.48,144.45,6.9227]
[1723802364480,0.12549,144.48,144.46,6.9223]
[1723802364677,0.25098,144.49,144.46,6.9223]
[1723802365269,0.25098,144.49,144.45,6.9226]
[1723802365585,0.25098,144.49,144.44,6.9231]
[1723802365586,17.48188,144.49,144.44,6.9231]
[1723802365801,6.9217,144.48,144.43,17.3085]
[1723802366368,17.48198,144.49,144.44,6.9232]
[1723802367305,0.12549,144.48,144.44,6.9232]
[1723802368886,0.12549,144.46,144.43,17.3085]
[1723802369205,0.37647,144.46,144.43,17.3085]
[1723802369978,0.37647,144.46,144.43,24.2322]
[1723802370987,7.29877,144.46,144.43,17.3085]
[1723802371982,0.37647,144.46,144.43,17.3085]
[1723802373193,2.68047421,144.51,144.45,17.3061]
[1723802373703,21.3864,144.52,144.45,17.3061]
[1723802374005,21.3864,144.52,144.45,24.2284]
[1723802374583,0.50196,144.51,144.45,24.2284]
[1723802374911,10.81196,144.51,144.45,24.2284]
[1723802375109,0.12549,144.48,144.45,24.2284]
[1723802375321,0.25098,144.48,144.45,24.2284]
[1723802380389,7.17268,144.48,144.43,6.9234]
[1723802380612,0.12549,144.47,144.43,6.9234]
[1723802380800,0.12549,144.46,144.43,6.9234]
[1723802381024,0.12549,144.46,144.41,6.1067016]
[1723802381025,10.31,144.45,144.41,6.1067016]
[1723802381194,0.25098,144.44,144.39,23.42389123]
[1723802381697,0.25098,144.44,144.39,17.3133]
[1723802382018,0.25098,144.44,144.41,6.9247]
[1723802383405,0.12549,144.44,144.41,6.9247]
[1723802383610,7.04749,144.47,144.43,6.9237]
[1723802383796,0.25098,144.46,144.43,6.9237]
[1723802384502,3.64414146,144.54,144.45,17.3065]
[1723802384503,1.20310568,144.51,144.45,17.3065]
[1723802384734,1.20310568,144.51,144.46,1.38418275]
[1723802384925,0.8541425,144.54,144.46,1.38418275]
[1723802384926,0.8541425,144.54,144.5,6.9199]
[1723802385597,11.1641425,144.54,144.5,17.3005]
[1723802385792,11.8575675,144.54,144.5,17.3005]
[1723802386023,17.2296,144.52,144.47,24.2262]
[1723802386199,0.37647,144.51,144.47,24.2262]
[1723802386830,7.29647,144.51,144.47,24.2262]
[1723802389039,10.31,144.5,144.47,17.3044]
[1723802389331,0.37647,144.49,144.47,17.3044]
[1723802389630,0.37647,144.49,144.47,24.2262]
[1723802390306,0.12549,144.49,144.47,24.2262]
[1723802390503,0.12549,144.5,144.47,17.3044]
[1723802390714,0.8541425,144.54,144.49,30.31]
[1723802391029,0.8541425,144.54,144.51,24.219]
[1723802391216,11.1641425,144.54,144.51,17.2994]
[1723802392013,0.8541425,144.54,144.51,24.2191]
[1723802392833,0.8541425,144.54,144.52,6.9193]
[1723802393235,0.8541425,144.54,144.51,24.2192]
[1723802395430,0.8541425,144.54,144.52,6.9193]
[1723802395641,0.8541425,144.54,144.51,24.2191]
[1723802396337,0.8541425,144.54,144.52,6.9194]
[1723802396945,0.8541425,144.54,144.51,17.2994]
[1723802396946,0.8541425,144.54,144.53,6.9189]
[1723802397121,0.8541425,144.54,144.52,6.9193]
[1723802397731,0.8541425,144.54,144.53,22.1575]
[1723802400518,0.8541425,144.54,144.53,6.9189]
[1723802402019,33.66865551,144.67,144.56,15.0627]
[1723802402218,10.31,144.66,144.57,18.67491614]
[1723802402540,6.9138,144.64,144.59,6.916]
[1723802402723,6.9143,144.63,144.58,8.29951619]
[1723802403246,10.31,144.64,144.57,24.2087]
[1723802403247,0.12549,144.61,144.57,24.2087]
[1723802403555,0.25098,144.61,144.58,6.9165]
[1723802403722,0.25098,144.61,144.57,24.2087]
[1723802403921,7.16608,144.61,144.57,24.2087]
[1723802404149,6.9166,144.58,144.54,24.214]
[1723802404331,0.25098,144.6,144.53,6.9188]
[1723802404332,7.29357,144.57,144.53,6.9188]
[1723802404534,7.16808,144.57,144.53,6.9188]
[1723802404844,0.25098,144.57,144.53,6.9188]
[1723802405049,0.25098,144.57,144.52,6.9193]
[1723802405050,0.12549,144.55,144.52,6.9193]
[1723802405219,0.25098,144.55,144.52,6.9193]
[1723802406256,0.25098,144.55,144.51,24.219]
[1723802406632,0.12549,144.53,144.48,17.3029]
[1723802408345,0.12549,144.51,144.48,17.3029]
[1723802408556,1.069895,144.51,144.48,17.3029]
[1723802408734,0.12549,144.5,144.48,17.3029]
[1723802408928,0.25098,144.5,144.48,17.3029]
[1723802410468,0.25098,144.5,144.46,6.9218]
[1723802410761,0.12549,144.49,144.47,6.9217]
[1723802411062,0.25098,144.49,144.47,6.9217]
[1723802411651,6.9186,144.54,144.49,6.9206]
[1723802412091,6.9182,144.55,144.51,6.9198]
[1723802412236,6.9176,144.56,144.51,6.9198]
[1723802412428,6.9181,144.55,144.51,6.9198]
[1723802413460,0.25098,144.54,144.51,6.9198]
[1723802414445,0.25098,144.55,144.51,6.9198]
[1723802414644,0.12549,144.54,144.51,6.9198]
[1723802415235,0.12549,144.54,144.52,6.9192]
[1723802417128,0.25098,144.55,144.52,6.9192]
[1723802418033,0.12549,144.54,144.51,24.2191]
[1723802418234,0.818915,144.54,144.51,24.2191]
[1723802418531,0.25098,144.53,144.51,24.2191]
[1723802419039,0.12549,144.53,144.52,6.9194]